Cogmind - Beta 15 @@@ ROGUE MODE // 2025.10.14 @ 02:43:41 Player: Veggiepits Result: Destroyed by G-47 Trooper with Particle Gun Performance ------------- Evolutions (2) 1000 Regions Visited (3) 600 Robots Destroyed (5) 25 Value Destroyed (50) 50 Prototype IDs (0) 0 Alien Tech Used (0) 0 Bonus (470) 470 TOTAL SCORE: 2145 Bonus ------- Pacifist 470 Cogmind --------- Core Integrity 0/550 Matter 201/300 Energy 90/100 System Corruption 0% Temperature Cool (9) Movement Walking (120) Location -8/Materials Parts ------- > --- POWER (2) -------- (None) > --- PROPULSION (3) --- Armored Treads Improved Aluminum Leg Improved Aluminum Leg > --- UTILITY (4) ------ (None) > --- WEAPON (2) ------- (None) > --- INVENTORY (5) ---- Flight Unit Peak State ------------ > --- POWER ------------ Light Ion Engine Light Nuclear Core > --- PROPULSION ------- Flight Unit Flight Unit Flight Unit > --- UTILITY ---------- Weight Redist. System Terrain Scanner Weapon Shielding > --- WEAPON ----------- Light Assault Rifle Light Cannon > --- INVENTORY -------- Light Ion Engine Light Ion Engine Flight Unit Light Assault Rifle Light Assault Rifle [Rating: 13] Favorites ----------- Power Light Ion Engine Engine Light Ion Engine Power Core Light Nuclear Core Propulsion Flight Unit Treads Improved Treads Leg Aluminum Leg Flight Unit Flight Unit Utility Weapon Shielding Device Weight Redist. System Storage Small Storage Unit Protection Weapon Shielding Weapon Light Assault Rifle Energy Gun Medium Laser Ballistic Gun Light Assault Rifle Ballistic Cannon Light Cannon Build | -11 -10 -9 -8 ------- Run | Yrd Mat Mat Mat Slots Evolved 4 | . . 2 2 Power 1 | . . 1 . Propulsion 1 | . . 1 . Utility 2 | . . . 2 Weapon . | . . . . Parts Attached 29 | 6 5 3 15 Power 4 | 1 . 1 2 Engine 3 | 1 . 1 1 Core 1 | . . . 1 Reactor . | . . . . Propulsion 11 | 2 2 1 6 Treads 3 | . . . 3 Leg 4 | 2 . . 2 Wheel . | . . . . Hover . | . . . . Flight 4 | . 2 1 1 Utility 7 | 1 1 1 4 Device 4 | . . 1 3 Storage 1 | 1 . . . Processor . | . . . . Hackware . | . . . . Protection 2 | . 1 . 1 Artifact . | . . . . Weapon 7 | 2 2 . 3 Energy Gun 2 | 1 . . 1 Energy Cannon . | . . . . Ballistic Gun 4 | 1 2 . 1 Ballistic Cannon 1 | . . . 1 Launcher . | . . . . Special Weapon . | . . . . Impact Weapon . | . . . . Slashing Weapon . | . . . . Piercing Weapon . | . . . . Special Melee Weapon . | . . . . Unidentified Prototypes . | . . . . Parts Lost 21 | . . . 21 Power 4 | . . . 4 Propulsion 6 | . . . 6 Utility 6 | . . . 6 Weapon 5 | . . . 5 Highest Loss Streak 10 | . . . 10 To Critical Strikes . | . . . . Average Backups 1 | . 2 3 1 Power . | . 1 1 . Propulsion . | . . 1 . Utility . | . . . . Weapon . | . . 1 . Tool/Special . | . . . . Unused Backups 2 | . 1 . 1 Power . | . . . . Propulsion 2 | . 1 . 1 Utility . | . . . . Weapon . | . . . . Tool/Special . | . . . . Average Slot Usage (%) 65 | . 91 94 42 Engine 10 | . 14 19 5 Treads 4 | . . . 8 Leg 7 | . 21 . . Flight 10 | . 6 33 7 Device 4 | . . 8 5 Storage 3 | . 11 . . Protection 5 | . 10 11 2 Energy Gun 4 | . 11 . 1 Ballistic Gun 12 | . 15 22 7 Peak Build Rating 13 | 6 7 10 13 Average Rating 6 | 4 6 9 6 On Entrance 5 | . 6 6 10 Naked Turns . | . . . . Heaviest Build 14 | 12 13 9 14 Greatest Support 66 | 20 20 18 66 Greatest Overweight (x) 1 | . 1 . 1 Average Overweight (x) . | . . . . Largest Inventory Capacity 8 | 8 8 5 5 Average Capacity 5 | 6 7 5 5 Most Carried 5 | 1 5 5 5 Average Carried 1 | . 2 3 1 Final Capacity 8 | 8 5 5 5 Final Carried 5 | 1 5 5 1 Class Distribution -------------------- 72% | Mutant 27% | Scavenger-Mutant Dominant Class ---------------- Mutant | -10/Materials Scavenger-Mutant | -9/Materials Mutant | -8/Materials Resources | -11 -10 -9 -8 ----------- Run | Yrd Mat Mat Mat Matter Collected 394 | 142 167 . 85 Remotely . | . . . . Salvage Created 67 | . . . 67 Parts 9 | . . . 9 Haulers Intercepted . | . . . . Recyclers Shooed . | . . . . Parts Field Recycled . | . . . . Retrieved Matter . | . . . . Parts Self-Destructed . | . . . . Prevented . | . . . . Kills | -11 -10 -9 -8 ------- Run | Yrd Mat Mat Mat Combat Hostiles Destroyed 5 | . . . 5 Guns 5 | . . . 5 Classes Destroyed 1 | . . . 1 Swarmer 5 | . . . 5 Best Kill Streak 3 | . . . 3 Combat Bots Only 3 | . . . 3 Max Kills in Single Turn 1 | . . . 1 Gunslinging . | . . . . Exploded . | . . . . Melee . | . . . . Uniques/NPCs Destroyed . | . . . . Combat | -11 -10 -9 -8 -------- Run | Yrd Mat Mat Mat Hostile Shots Fired 283 | . 11 . 272 Missed 113 | . 4 . 109 Hits 170 | . 7 . 163 Projectile 170 | . 7 . 163 Critical Strikes 5 | . . . 5 Damage Taken 2213 | . 126 . 2087 Core 589 | . 25 . 564 Absorbed by Shields . | . . . . Redirected to Shielding 15 | . 3 . 12 Core Remaining (%) 96 | 100 90 100 . Volleys Fired 37 | . 3 4 30 Largest 2 | . 2 2 2 Hottest 70 | . 70 40 56 Shots Fired 55 | . 6 8 41 Gun 44 | . 6 8 30 Cannon 11 | . . . 11 Launcher . | . . . . Special . | . . . . Kinetic 49 | . 3 8 38 Thermal 6 | . 3 . 3 Explosive . | . . . . Electromagnetic . | . . . . Robot Hit Streak 11 | . 3 4 11 Robot Miss Streak 4 | . 1 2 4 Penetration Max . | . . . . Secondary Targets . | . . . . Shots Hit Robots 30 | . 4 4 22 Core Hits 10 | . 1 . 9 Critical Kills . | . . . . Critical Parts Destroyed 1 | . . 1 . Critical Strikes 1 | . . 1 . Destroy 1 | . . 1 . Melee Attacks . | . . . . Impact . | . . . . Slashing . | . . . . Piercing . | . . . . Sneak Attacks . | . . . . Combat Hostiles . | . . . . Follow-up Attacks . | . . . . Damage Inflicted 351 | . 63 31 257 Guns 271 | . 63 31 177 Cannons 80 | . . . 80 Explosions . | . . . . Melee . | . . . . Ramming . | . . . . Kinetic 311 | . 38 31 242 Thermal 40 | . 25 . 15 Explosive . | . . . . Electromagnetic . | . . . . Impact . | . . . . Slashing . | . . . . Piercing . | . . . . Highest Corruption . | . . . . Average Corruption . | . . . . Corruption Purged . | . . . . Corruption Blocked . | . . . . Overload Shots . | . . . . Overflow Damage . | . . . . Projectiles . | . . . . Explosions . | . . . . Melee . | . . . . Knockbacks . | . . . . Impact . | . . . . Kinetic . | . . . . Secondary . | . . . . Self-Inflicted Damage . | . . . . Shots . | . . . . Rammed . | . . . . Targets Rammed . | . . . . Kicked . | . . . . Crushed . | . . . . Highest Temperature 69 | . 27 20 69 Average Temperature 18 | . 15 10 21 Received Heat Transfer 828 | . 54 . 774 Siege Activations . | . . . . Martial Activations . | . . . . Shielding Activations . | . . . . Robots Disrupted . | . . . . Combat Hostiles . | . . . . Robots Corrupted . | . . . . Combat Hostiles . | . . . . Parts Fried . | . . . . Impact Corruptions . | . . . . Robots Melted . | . . . . Combat Hostiles . | . . . . Parts Melted . | . . . . Heat Transferred 111 | . 74 . 37 Parts Sabotaged . | . . . . Parts Stolen . | . . . . Parts Stripped . | . . . . Power Chain Reactions . | . . . . Alert | -11 -10 -9 -8 ------- Run | Yrd Mat Mat Mat Maximum Alert Level . | . . . . Low Security (%) 100 | 100 100 100 100 Level 1 . | . . . . Level 2 . | . . . . Level 3 . | . . . . Level 4 . | . . . . Level 5 . | . . . . High Security . | . . . . Max Security . | . . . . Peak Influence 135 | . . 15 135 Initial . | . . . . Average 21 | . . 4 43 Influence Increases 289 | . . 15 274 Destroy 0b10 Robot/C 100 | . . . 100 Destroy Leader 10 | . . . 10 Successful Hack 14 | . . . 14 Partial Spotted 45 | . . 15 30 Lose Combat Pursuer 120 | . . . 120 Influence Decreases 274 | . . 15 259 Time Decay 145 | . . 15 130 Lost Part 129 | . . . 129 Squads Dispatched 6 | . . 3 3 Investigation 3 | . . 2 1 Extermination . | . . . . Reinforcement 3 | . . 1 2 Assault . | . . . . Garrison . | . . . . Intercept . | . . . . Searches Triggered . | . . . . Construction Impeded . | . . . . Haulers Reinforced . | . . . . Active Scanning Responses . | . . . . Cargo Convoy Interrupts . | . . . . Stealth | -11 -10 -9 -8 --------- Run | Yrd Mat Mat Mat Distress Signals . | . . . . Communications Jammed . | . . . . Distress Signals . | . . . . Times Spotted 36 | . 2 4 30 Peak Tracking Total 10 | . 2 3 10 Tactical Retreats 3 | . . . 3 Traps | -11 -10 -9 -8 ------- Run | Yrd Mat Mat Mat Traps Triggered 1 | . 1 . . Indirectly . | . . . . Trap Hack Attempts . | . . . . Triggered . | . . . . Disarmed . | . . . . Reprogrammed 6 | . . 6 . Reused . | . . . . Traps Extracted . | . . . . Installed . | . . . . Triggered . | . . . . Machines | -11 -10 -9 -8 ---------- Run | Yrd Mat Mat Mat Machines Disabled . | . . . . Max in Single Turn . | . . . . Machines Repaired . | . . . . Machines Dismantled . | . . . . Machines Sabotaged . | . . . . Overloaded Fab Kills . | . . . . Hacking | -11 -10 -9 -8 --------- Run | Yrd Mat Mat Mat Machines Accessed 5 | . 1 3 1 Terminals 4 | . . 3 1 Fabricators . | . . . . Repair Stations 1 | . 1 . . Recycling Units . | . . . . Scanalyzers . | . . . . Garrison Access . | . . . . Total Hacks 9 | . 1 5 3 Successful 5 | . 1 2 2 Failed 4 | . . 3 1 Catastrophic 2 | . . 2 . Database Lockouts . | . . . . Manual 2 | . . 2 . Terminals 8 | . . 5 3 Fabricators . | . . . . Repair Stations 1 | . 1 . . Recycling Units . | . . . . Scanalyzers . | . . . . Garrison Access . | . . . . Terminal Hacks 4 | . . 2 2 Record 2 | . . 1 1 Emergency Access Points 1 | . . . 1 Reprogram Traps 1 | . . 1 . Fabricator Hacks . | . . . . Repair Station Hacks 1 | . 1 . . Scan Component 1 | . 1 . . Recycling Unit Hacks . | . . . . Scanalyzer . | . . . . Garrison Access Hacks . | . . . . Unauthorized Hacks . | . . . . Terminals . | . . . . Fabricators . | . . . . Repair Stations . | . . . . Recycling Units . | . . . . Scanalyzers . | . . . . Garrison Access . | . . . . Data Cores Recovered . | . . . . Used . | . . . . Hacking Detections 3 | . . 2 1 Full Trace Events 3 | . . 2 1 Feedback Events . | . . . . Feedback Blocked . | . . . . Robot Schematics Acquired . | . . . . Robots Built . | . . . . Authchips . | . . . . Time . | . . . . Total Robot Build Rating . | . . . . Part Schematics Acquired . | . . . . Parts Built . | . . . . Authchips . | . . . . Time . | . . . . Total Part Build Rating . | . . . . Parts Repaired . | . . . . Time . | . . . . Parts Recycled . | . . . . Recycled Matter . | . . . . Retrieved Matter . | . . . . Retrieved Components . | . . . . Parts Scanalyzed . | . . . . Part Schematics Acquired . | . . . . Parts Damaged . | . . . . Bothacking | -11 -10 -9 -8 ------------ Run | Yrd Mat Mat Mat Used RIF Installer . | . . . . Robots Hacked . | . . . . Non-combat . | . . . . Combat . | . . . . Robot Hacks Applied . | . . . . Relay Couplers Released . | . . . . Fabnet Peak Effective % . | . . . . Robots Rewired . | . . . . Allies Hacked . | . . . . Hacks Repelled . | . . . . Allies | -11 -10 -9 -8 -------- Run | Yrd Mat Mat Mat Total Allies . | . . . . Largest Group . | . . . . Highest-Rated Group . | . . . . Highest-Rated Ally . | . . . . Total Orders . | . . . . Ally Attacks . | . . . . Total Damage . | . . . . Kills . | . . . . Allies Corrupted . | . . . . Allies Melted . | . . . . Intel | -11 -10 -9 -8 ------- Run | Yrd Mat Mat Mat Active Infowar (turns) 57 | . . . 57 Terrain 57 | . . . 57 Robot Analysis Total . | . . . . Derelict Logs Recovered . | . . . . Drone Launches . | . . . . Drone Recoveries . | . . . . Exploration | -11 -10 -9 -8 ------------- Run | Yrd Mat Mat Mat Turns Passed 704 | 83 196 82 343 Spaces Moved 741 | 64 193 193 291 Core 52 | 5 . . 47 Treads 65 | . . . 65 Legs 176 | 59 109 . 8 Wheels . | . . . . Hover . | . . . . Flight 448 | . 84 193 171 Fastest Speed 34 | 50 37 34 34 Average Speed 74 | 114 85 34 85 Slowest Speed 170 | 120 120 34 170 Overloaded Moves . | . . . . Propulsion Burnouts . | . . . . Robots Hopped 2 | . 2 . . Potential Cave-ins . | . . . . Cave-ins Triggered . | . . . . Exploration Rate (%) 24 | 4 38 29 25 Regions Visited 3 Branch Regions . Pre-discovered Areas . | . . . . Known Exits Taken . | . . . . Unknown Exits Taken 3 | 1 1 1 . Scrap Searched . | . . . . Spaces Dug . | . . . . Terrain Destroyed . | . . . . Melee . | . . . . Projectile . | . . . . AOE . | . . . . Terrain Rammed . | . . . . Walls Destroyed . | . . . . Machines Disabled . | . . . . Actions | -11 -10 -9 -8 --------- Run | Yrd Mat Mat Mat Total 833 | 70 218 201 344 Wait 8 | . 4 . 4 Move 734 | 63 188 192 291 Hop 2 | . 2 . . Pick Up 12 | 1 7 2 2 Fast Attach 19 | 6 3 1 9 Attach 8 | . . 2 6 Detach 3 | . 3 . . Swap 4 | . 2 . 2 Drop 6 | . 6 . . Fire 37 | . 3 4 30 Melee . | . . . . Ram . | . . . . Kick . | . . . . Crush . | . . . . Escape Stasis . | . . . . Rewire . | . . . . Trap . | . . . . Miscellaneous . | . . . . Route ------- -11/Scrapyard -10/Materials (discovered 2 exits: *Mat / [*Min]) -9/Materials (discovered 2 exits: *Mat / [*Min]) -8/Materials History --------- Turn | Location | Event 19 | -11/Scrapyard | Discovered new exit (range 15) 84 | -11/Scrapyard | Entered Materials 85 | -10/Materials | Met a group of wandering Federalists 272 | -10/Materials | Discovered new exit (range 13) 274 | -10/Materials | Discovered new exit (range 16) 280 | -10/Materials | Entered another Materials area 280 | -9/Materials | Evolved 2 slots: Power x1, Propulsion x1 329 | -9/Materials | Discovered new exit (range 12) 352 | -9/Materials | Discovered new exit (range 16) 362 | -9/Materials | Entered another Materials area 362 | -8/Materials | Evolved 2 slots: Utility x2 480 | -8/Materials | Lost 10 parts (2p3n3u2w) 517 | -8/Materials | Core integrity fell below 50% 549 | -8/Materials | Lost 4 parts (2p1n1w) 629 | -8/Materials | Core integrity fell below 20% 705 | -8/Materials | Destroyed by G-47 Trooper with Particle Gun Last Messages --------------- 00634_ K-01 Serf collects debris. 00634_ Acquired Beam Rifle. 00637_ K-01 Serf collects debris. 00642_ Imp. Treads destroyed. 00645_ K-01 Serf collects debris. 00654_ Lgt. Armor Plating destroyed. 00657_ K-01 Serf collects debris. 00659_ Heat Sink destroyed. 00663_ K-01 Serf collects debris. 00671_ K-01 Serf cleans the Terminal. 00683_ T-07 Excavator is excavating. 00684_ Beam Rifle destroyed. 00685_ K-01 Serf cleans the Terminal. 00689_ K-01 Serf cleans the Atomic Centrifuge. 00692_ T-07 Excavator is excavating. 00693_ Acquired Imp. Aluminum Leg. 00693_ K-01 Serf collects debris. 00696_ Acquired Imp. Aluminum Leg. 00696_ T-07 Excavator is excavating. 00698_ K-01 Serf cleans the Atomic Centrifuge. Map ----- +----------------------------------------------------+ | ##+?????############## % !!#???????????????????? | | #?????? !!#???????????????????? | | ??????? !!#???????????????????? | | ??????? [[ ==#???????????????????? | | ????????###+### [! ==#???????????????????? | | ??????????????# #####???????????????????? | | ??????????????# ^ #???????????????????????? | | ??????????????# !!]#???????????????????????? | | ??????????????# !!]#???????????????????????? | | ??????????????# !]]##??????????????????????? | | ??????????????# "#??????????????????????? | | ??????????????# T#?###??????????????????? | | ??????????????# "#? #??????????????????? | | ????????####### gg ##? #?#####????????????? | | ??????? gg ### ### #???????????? | | ??????? g #???????????? | | ??????? k #???????????? | | ??????? #???????????? | | ??????? """ """k [#???????????? | | ???????? """ """ ##??????????? | | ????????? """ ! """ "#??????????? | | ???????? ! T#??????????? | | ???????? =! "#??????????? | | ???????? #???????????? | | ????????? #???????????? | | ?????????+######+########@####### #???????????? | | ??????????????? ???# #???? #???????????? | | ?????????????? ????# #???????#???????????? | | ?????????????# ????# #???????????????????? | | ????????????????????# #???????????????????? | | ????????????????????# #???????????????????? | | ????????????????????# #???????????????????? | | ????????????????????# #???????????????????? | | ????????????????????# #???????????????????? | | ????????????????????# #???????????????????? | | ????????????????????##########???????????????????? | | ?????????????????????????????????????????????????? | | ?????????????????????????????????????????????????? | | ?????????????????????????????????????????????????? | | ?????????????????????????????????????????????????? | | ?????????????????????????????????????????????????? | | ?????????????????????????????????????????????????? | | ?????????????????????????????????????????????????? | | ?????????????????????????????????????????????????? | | ?????????????????????????????????????????????????? | | ?????????????????????????????????????????????????? | | ?????????????????????????????????????????????????? | | ?????????????????????????????????????????????????? | | ?????????????????????????????????????????????????? | | ?????????????????????????????????????????????????? | +----------------------------------------------------+ Best States ------------- Heat Dissipation 41 Energy Generation 19 Energy Capacity 185 Matter Stores 300 Matter Capacity 300 Sight Range 16 Terrain Scan Range 14 Terrain Scan Density 10 Additional Mass Support 9 Armor Coverage 150 Weapon Shielding 33 Evasion (%) 63 Recoil Reduction 3 Item Schematics ----------------- None Robot Schematics ------------------ None Fabricated ------------ Nothing Repaired ---------- Nothing Alien Tech Used ----------------- None Achievements -------------- None Challenges ------------ None Game ------ Seed PersonalReactiveRouter Manual? 0 Play Time 00:13:52 Cumulative 3.0 hours Start 2025.10.14 @ 02:31:20 End 2025.10.14 @ 02:43:41 Sessions 1 Manual Loads 0 Difficulty Rogue Special Mode None Game No. 7 Rogue 7 Adventurer 0 Explorer 0 Win Type - Total 0 Types 0/0/0/0/0/0/0/0/0/0 Lore% 0 Gallery% 5 Achievement% 5 Wizard Run 0 Options --------- Layout 1 ASCII 0 Keyboard 1 Movement Numpad Keybinds 0 Fullscreen 0 Font 28/SmallcapsGlow Map View 77x35 Zoom Use 0% Tactical HUD 1 Map Filters NONE Filters NONE Steam 1 RUN: 5a8a5dde-3727-4e63-90d4-b1fd590ad8b7